bitfinex/quotes_ETHUSD_20240715
["timestamp","ask_amount","ask_price","bid_price","bid_amount"]
[1721041569996,2.99292,3341.3,3340.6,3.06660458]
[1721041571032,2.99292,3341.3,3340.7,2.99337]
[1721041571206,0.07482695,3341.2,3340.7,0.07313495]
[1721041571408,0.07482695,3341.2,3340.5,4.442236]
[1721041571609,0.07482695,3341.2,3340.6,0.77966205]
[1721041571807,2.4008,3341.1,3340.6,0.07320268]
[1721041572209,2.4008,3341.1,3340.7,0.55]
[1721041572498,2.4008,3341.1,3340.7,0.07313495]
[1721041572916,2.4008,3341.1,3340.4,2.99358]
[1721041573216,5.39357,3341.4,3340.5,2.99347]
[1721041573412,2.99285,3341.3,3340.6,4.142155]
[1721041573619,2.4008,3341.4,3340.6,4.142155]
[1721041573936,2.4008,3341.4,3340.7,0.07313495]
[1721041574139,5.39358,3341.4,3340.7,0.07313495]
[1721041575019,2.99285,3341.3,3340.7,0.07313495]
[1721041575234,2.99285,3341.3,3340.7,0.79402195]
[1721041575540,2.99272,3341.5,3340.8,6.01542]
[1721041575750,2.99262,3341.6,3340.9,2.99319]
[1721041575894,2.99262,3341.6,3340.9,3.95050128]
[1721041576450,2.3481,3341.8,3341.0,2.99304]
[1721041576600,2.3481,3341.8,3341.0,3.67582873]
[1721041577009,2.99249,3341.7,3341.0,3.67582873]
[1721041577238,2.99258,3341.6,3341.1,0.70323371]
[1721041577444,2.99258,3341.6,3341.1,0.07286747]
[1721041577631,8.33297,3341.8,3341.1,0.07286747]
[1721041577824,2.9925,3341.7,3341.1,0.07286747]
[1721041579537,2.99258,3341.6,3341.1,0.07286747]
[1721041581367,5.34057,3341.8,3341.1,0.07286747]
[1721041581662,5.34057,3341.8,3341.1,0.73377722]
[1721041581857,2.3481,3341.8,3341.1,3.72671722]
[1721041582021,3.61384969,3341.9,3341.1,3.78656994]
[1721041583025,0.62149969,3341.8,3341.1,3.78656994]
[1721041583731,0.62149969,3341.8,3341.2,2.99293]
[1721041583931,2.9925,3341.7,3341.2,0.07279976]
[1721041584133,3.74635992,3341.7,3341.0,3.54304]
[1721041584341,3.74635992,3341.7,3341.3,0.07273206]
[1721041584342,2.3164,3341.6,3341.3,0.07273206]
[1721041584522,2.3164,3341.6,3341.0,3.54304]
[1721041584724,2.3164,3341.6,3341.4,0.07266435]
[1721041584941,2.3164,3341.6,3341.0,3.54304]
[1721041585144,2.3164,3341.6,3341.5,0.07258559]
[1721041585373,2.3164,3341.6,3341.0,3.54304]
[1721041585525,2.3164,3341.6,3341.5,0.07258559]
[1721041585728,2.3164,3341.6,3341.1,2.99302]
[1721041585965,5.30897,3341.6,3341.5,0.07258559]
[1721041586142,2.99275,3341.5,3340.9,3.0]
[1721041586335,8.92445622,3341.6,3340.9,3.0]
[1721041586543,0.62283622,3341.5,3341.0,0.07291475]
[1721041586927,3.61552622,3341.5,3341.0,0.07291475]
[1721041587125,2.93923622,3341.6,3341.1,2.99301]
[1721041587325,2.93923622,3341.6,3341.1,3.06585704]
[1721041588574,0.62283622,3341.6,3341.2,2.99293]
[1721041588945,0.62283622,3341.6,3341.3,0.07271162]
[1721041589491,0.62283622,3341.6,3341.4,0.07264392]
[1721041589828,0.62283622,3341.6,3340.9,5.99316]
[1721041589829,0.62283622,3341.6,3341.1,2.99301]
[1721041590027,0.62283622,3341.6,3341.5,0.07257622]
[1721041590270,0.62283622,3341.6,3341.2,2.99293]
[1721041590482,0.62283622,3341.6,3341.5,0.07257622]
[1721041591169,0.62283622,3341.6,3341.2,2.99293]
[1721041591377,0.62283622,3341.6,3341.5,0.07257622]
[1721041591683,1.24567244,3341.9,3341.4,2.99275]
[1721041591684,0.62283622,3341.7,3341.4,2.99275]
[1721041591884,0.62283622,3341.7,3341.5,0.07257622]
[1721041594340,0.62283622,3341.8,3341.5,0.07257622]
[1721041595255,0.62283622,3341.8,3341.5,3.06523622]
[1721041595982,0.62283622,3341.8,3341.5,3.77182859]
[1721041596145,0.62283622,3341.9,3341.6,2.99257]
[1721041596339,0.62283622,3341.8,3341.7,0.07244084]
[1721041596571,0.62283622,3341.9,3341.7,0.07244084]
[1721041597694,0.62283622,3341.9,3341.8,2.99239]
[1721041597844,0.62283622,3341.9,3341.8,3.06475165]
[1721041598040,0.93425433,3342.1,3341.9,2.99225]
[1721041598041,0.62283622,3342.1,3341.9,2.99225]
[1721041598284,0.62283622,3342.1,3342.0,3.06443054]
[1721041598285,0.62348476,3342.1,3342.0,3.06443054]
[1721041598648,3.95930176,3342.6,3342.1,2.99213]
[1721041598649,0.62348476,3342.2,3342.1,2.99213]
[1721041599052,0.62348476,3342.2,3342.1,0.07214286]
[1721041600884,0.62349509,3342.2,3342.1,0.07214286]
[1721041601287,0.62349509,3342.2,3342.1,3.06426286]
[1721041602488,0.62349509,3342.4,3342.2,2.99204]
[1721041602790,0.62349509,3342.5,3342.4,2.99186]
[1721041603122,0.62349509,3342.5,3342.4,3.06378497]
[1721041603692,0.62349509,3342.6,3342.4,3.06378497]
[1721041605160,0.62349509,3342.6,3342.5,0.393803]
[1721041605366,0.62349509,3343.0,3342.5,0.46566031]
[1721041605566,0.62349509,3343.0,3342.5,0.07185731]
[1721041606009,0.62349509,3343.0,3342.5,3.06361731]
[1721041606488,2.97079509,3343.1,3342.5,3.06361731]
[1721041606669,5.96202509,3343.1,3342.5,3.06361731]
[1721041607377,0.62349509,3343.1,3342.7,2.99158]
[1721041607600,0.62349509,3343.2,3342.8,2.99145]
[1721041607921,0.62349509,3343.2,3343.0,2.99131]
[1721041608218,0.62349509,3343.3,3343.1,0.07138933]
[1721041608676,0.62349509,3343.3,3343.2,0.0713217]
[1721041608883,3.00915744,3343.4,3342.9,2.9914]
[1721041609082,3.00915744,3343.4,3343.0,0.07145696]
[1721041609907,2.3869,3343.4,3343.0,0.07145696]
[1721041613680,2.3869,3343.4,3343.0,3.06276696]
[1721041613904,0.62164889,3343.7,3343.1,3.8474857]
[1721041614203,0.62164889,3343.7,3343.2,0.0713217]
[1721041614881,0.62164889,3343.7,3343.1,3.8474857]
[1721041615075,0.62164889,3343.7,3343.2,0.0713217]
[1721041615293,0.62164889,3343.7,3343.1,3.8474857]
[1721041615516,0.62164889,3343.7,3343.2,0.0713217]
[1721041615818,0.69642085,3343.7,3343.2,0.0713217]
[1721041616487,0.07477196,3343.7,3343.2,0.0713217]
[1721041616696,2.99083,3343.6,3342.9,2.99137]
[1721041616904,2.99083,3343.6,3343.0,0.07145696]
[1721041617108,2.99083,3343.6,3343.0,3.06275696]
[1721041617283,2.99083,3343.6,3343.0,3.66816566]
[1721041620681,6.04146889,3343.8,3343.1,2.99117]
[1721041620880,6.04146889,3343.8,3343.2,0.07130043]
[1721041621117,0.07477195,3343.7,3343.2,0.07130043]
[1721041621278,2.4937,3343.4,3342.7,2.99156]
[1721041621480,2.4937,3343.4,3342.8,4.60672634]
[1721041621936,5.48467,3343.4,3342.8,4.60672634]
[1721041622281,2.99129,3343.1,3342.8,0.07157097]
[1721041622484,2.99114,3343.2,3342.8,0.07157097]
[1721041622485,2.99141,3342.9,3342.8,0.07157097]
[1721041622716,2.4937,3343.0,3342.8,0.0715514]
[1721041622900,2.4937,3343.0,3342.3,2.99194]
[1721041623226,2.4937,3343.0,3342.4,0.07182201]
[1721041623227,5.48502,3343.0,3342.4,0.07182201]
[1721041626425,5.48502,3343.0,3342.4,3.06367201]
[1721041627269,5.48502,3343.0,3342.4,0.07182201]
[1721041627768,3.06620072,3342.9,3342.5,0.07175435]
[1721041627950,3.06620072,3342.9,3342.3,2.99194]
[1721041628272,3.06620072,3342.9,3342.4,0.07182201]
[1721041628464,2.9915,3342.8,3342.4,0.07182201]
[1721041628634,2.9915,3342.8,3342.2,3.0]
[1721041628833,2.9915,3342.8,3342.5,0.07175435]
[1721041629046,2.9915,3342.8,3342.2,3.0]
[1721041629218,2.9915,3342.8,3342.6,0.0716867]
[1721041629419,2.9915,3342.8,3342.1,3.0]
[1721041629645,8.4161,3342.8,3341.9,2.9923]
[1721041629852,2.99167,3342.7,3342.0,3.0]
[1721041630088,2.99169,3342.6,3342.0,3.07209268]
[1721041630269,0.07479815,3342.5,3342.0,3.07209268]
[1721041630478,2.99178,3342.5,3342.0,0.07209268]
[1721041631887,0.84912184,3342.5,3342.0,0.07209268]
[1721041632052,2.99204,3342.2,3342.0,0.07209268]
[1721041632249,2.99204,3342.2,3341.4,2.99274]
[1721041632454,2.2618,3342.4,3341.4,2.99274]
[1721041632455,2.992,3342.3,3342.1,0.07208626]
[1721041632652,2.992,3342.3,3341.6,2.99257]
[1721041632653,2.99204,3342.2,3341.6,2.99257]
[1721041632847,2.99204,3342.2,3341.7,0.598531]
[1721041633594,2.88357721,3342.4,3341.7,0.598531]
[1721041633595,2.99197,3342.3,3341.7,0.598531]
[1721041633768,2.99204,3342.2,3341.7,0.598531]
[1721041635297,5.87548721,3342.4,3341.7,0.598531]
[1721041635503,5.87548721,3342.4,3341.8,0.6583611]
[1721041635651,2.99196,3342.3,3341.8,0.6583611]
[1721041635855,5.98399,3342.3,3341.8,0.6583611]
[1721041636181,6.60576721,3342.3,3341.6,2.99251]
[1721041636388,0.07480601,3342.2,3341.3,10.41]
[1721041636710,2.9924,3341.8,3341.3,3.0]
[1721041636854,2.99252,3341.7,3341.1,3.0]
[1721041637063,2.99252,3341.7,3341.1,3.898631]
[1721041637268,2.99252,3341.7,3341.1,6.891651]
[1721041637669,5.98476,3341.9,3341.1,6.891651]
[1721041637892,2.9924,3341.8,3341.1,6.891651]
[1721041638768,3.00817721,3342.1,3341.2,0.55]
[1721041638975,6.00035721,3342.1,3341.3,3.4376331]
[1721041639274,2.99227,3342.0,3341.3,3.4376331]
[1721041639500,2.99231,3341.9,3341.2,0.55]
[1721041639701,2.99231,3341.9,3341.2,3.55]
[1721041639895,2.99231,3341.9,3341.2,6.54291]
[1721041640204,2.99231,3341.9,3341.3,2.99283]
[1721041640783,2.99231,3341.9,3341.2,6.54291]
[1721041641392,2.99231,3341.9,3341.2,3.54291]
[1721041642109,2.9925,3341.7,3340.9,2.99315]
[1721041642401,2.9925,3341.7,3341.0,0.55]
[1721041642402,2.46,3341.6,3341.0,0.55]
[1721041642608,6.07437721,3341.6,3341.0,0.55]
[1721041642783,6.07437721,3341.6,3340.6,7.41]
[1721041642784,2.99285,3341.3,3340.6,7.41]
[1721041642983,2.99285,3341.3,3340.6,4.271349]
[1721041643191,2.99285,3341.3,3340.3,5.3696]
[1721041643192,2.99294,3341.2,3340.4,2.99358]
[1721041643406,2.46,3341.1,3340.5,2.99355]
[1721041643974,5.45303,3341.1,3340.6,0.55]
[1721041644171,5.45303,3341.1,3340.3,2.99366]
[1721041644384,0.07482984,3341.0,3340.4,2.99361]
[1721041644669,5.52786048,3341.1,3340.4,2.99361]
[1721041645288,5.52786048,3341.1,3340.5,0.55]
[1721041645670,2.99312,3341.0,3340.6,0.07316691]
[1721041649781,2.46,3341.1,3340.6,0.07316691]
[1721041650688,2.99283,3341.4,3340.6,3.7276056]
[1721041650891,2.99283,3341.4,3340.7,3.54331]
[1721041651118,2.2939,3341.5,3340.8,2.99328]
[1721041651313,0.93122612,3341.9,3341.0,2.99305]
[1721041651314,2.2939,3341.8,3341.0,2.99305]
[1721041651477,2.99223,3342.0,3341.1,3.55]
[1721041651677,2.99223,3342.0,3341.3,2.99284]
[1721041652000,2.99223,3342.0,3341.4,0.07264008]
[1721041652209,2.2939,3342.1,3341.4,3.06539008]
[1721041652529,5.28608,3342.1,3341.5,0.55]
[1721041652687,8.27829,3342.1,3341.5,0.55]
[1721041652897,8.27829,3342.1,3341.6,0.07250469]
[1721041653355,5.28608,3342.1,3341.6,0.07250469]
[1721041653834,2.99241,3341.8,3341.2,0.36098535]
[1721041654025,2.99241,3341.8,3341.7,0.072437]
[1721041654215,2.99241,3341.8,3341.2,0.36098535]
[1721041654216,2.99257,3341.7,3341.1,3.0]
[1721041654423,2.2809,3341.6,3341.1,3.0]
[1721041654727,2.2809,3341.6,3341.1,3.89863]
[1721041658237,5.27351,3341.6,3340.8,2.99327]
[1721041658410,2.99267,3341.5,3340.9,3.55]
[1721041658810,2.99267,3341.5,3340.9,6.5432]
[1721041658993,2.99267,3341.5,3341.0,0.953647]
[1721041659193,2.2809,3341.6,3341.0,0.953647]
[1721041659439,2.2809,3341.6,3341.0,3.946707]
[1721041659648,2.2809,3341.6,3341.1,0.55]
[1721041660533,2.2809,3341.6,3341.2,0.07276784]
[1721041661928,2.99235,3341.9,3341.2,3.71724621]
[1721041662120,2.2591,3342.0,3341.3,3.54284]
[1721041662461,2.2591,3342.0,3341.4,0.07263286]
[1721041662956,2.99231,3341.9,3341.4,0.07263286]
[1721041665328,2.99254,3341.7,3341.4,0.07263286]
[1721041665530,2.99258,3341.6,3341.0,2.99307]
[1721041665751,2.99258,3341.6,3341.1,0.62283129]
[1721041666406,2.99258,3341.6,3341.1,0.07283129]
[1721041666663,2.99258,3341.6,3340.9,2.99319]
[1721041666805,2.99258,3341.6,3341.2,0.07276358]
[1721041667009,2.99258,3341.6,3341.0,3.0]
[1721041667213,2.99258,3341.6,3341.3,0.07269928]
[1721041667418,2.99258,3341.6,3341.0,3.0]
[1721041667618,2.99258,3341.6,3341.4,0.07263158]
[1721041667850,2.99258,3341.6,3341.0,3.0]
[1721041668387,2.99258,3341.6,3341.1,0.0728347]
[1721041670061,5.98523,3341.6,3341.1,0.0728347]
[1721041670267,2.9927,3341.5,3341.1,0.0728347]
[1721041672958,0.62241781,3341.6,3341.1,0.0728347]
[1721041673478,3.61504781,3341.6,3341.1,0.0728347]
[1721041673683,2.99267,3341.5,3341.1,0.0728347]
[1721041673879,2.99285,3341.3,3341.1,0.0728347]
[1721041674181,2.99285,3341.3,3340.6,3.0]
[1721041674484,2.99302,3341.1,3340.7,0.07311962]
[1721041674765,3.06785021,3341.1,3340.7,0.07311962]
[1721041674963,4.05671643,3341.1,3340.5,3.0]
[1721041675273,2.2844,3340.9,3340.6,0.07319161]
[1721041675479,3.61606481,3340.7,3340.6,0.07319161]
[1721041675680,2.99338,3340.7,3340.6,0.07319161]
[1721041675833,3.92740722,3340.7,3340.0,2.994]
[1721041676140,3.92740722,3340.7,3340.1,0.07353033]
[1721041676141,0.62277204,3340.5,3340.1,0.07353033]
[1721041676340,0.62277204,3340.6,3340.1,0.07353033]
[1721041676856,0.62277204,3340.7,3340.1,3.06742033]
[1721041677042,0.62277204,3340.7,3340.2,0.83699103]
[1721041677570,0.62277204,3340.7,3340.3,0.07339483]
[1721041677965,0.62277204,3340.7,3340.3,3.06710483]
[1721041678139,0.62277204,3340.9,3340.4,0.55]
[1721041678339,0.62277204,3340.8,3340.5,0.07328576]
[1721041678568,0.93402722,3341.0,3340.5,0.07328576]
[1721041678569,0.62277204,3340.9,3340.5,0.07328576]
[1721041680085,0.6228935,3340.9,3340.5,0.07328576]
[1721041680578,0.6228935,3340.8,3340.5,0.07328576]
[1721041680779,0.6228935,3340.7,3340.5,0.07328576]
[1721041680982,0.6228935,3340.6,3340.5,0.07328576]
[1721041681141,0.6228935,3340.6,3340.1,2.9939]
[1721041681342,3.0703935,3340.6,3340.2,0.07348302]
[1721041681766,2.4475,3340.6,3340.2,0.07348302]
[1721041683392,0.6228935,3340.7,3340.2,0.07348302]
[1721041683608,0.6228935,3340.7,3340.2,0.91047032]
[1721041684893,0.6228935,3340.7,3340.2,3.90429032]
[1721041685371,0.6228935,3340.7,3340.2,3.06730302]
[1721041685688,0.62288596,3340.7,3340.2,3.06730302]
[1721041686095,0.6227702,3340.7,3340.2,3.06730302]
[1721041687408,0.6227702,3340.7,3340.2,0.07348302]
[1721041687619,0.6227702,3340.7,3340.0,2.99394]
[1721041687801,0.6227702,3340.7,3340.1,3.6174727]
[1721041688806,0.6227702,3340.7,3340.2,2.99381]
[1721041689013,0.6227702,3340.7,3340.3,0.07344721]
[1721041689525,0.6227702,3340.8,3340.3,0.07344721]
[1721041689670,0.6227702,3341.0,3340.6,2.99345]
[1721041689976,0.6227702,3341.0,3340.7,0.07318009]
[1721041690376,0.9341553,3341.2,3340.7,0.07318009]
[1721041690377,0.6227702,3340.9,3340.7,0.07318009]
[1721041690606,0.6227702,3341.0,3340.7,0.07318009]
[1721041690995,0.6227702,3340.9,3340.7,0.07318009]
[1721041691677,0.6227702,3341.0,3340.7,0.07318009]
[1721041692016,0.6227448,3341.0,3340.8,3.54323]
[1721041692177,0.6227448,3341.0,3340.9,0.07304464]
[1721041693715,0.6227448,3341.0,3340.5,2.99356]
[1721041693913,2.3666,3340.9,3340.5,2.99356]
[1721041694322,0.6227448,3341.0,3340.7,2.9933]
[1721041696038,0.6227448,3341.0,3340.8,2.99328]
[1721041696338,0.6227448,3341.0,3340.7,3.591982]
[1721041696339,0.6227448,3341.2,3340.9,2.99318]
[1721041696709,0.6227448,3341.4,3340.9,2.99318]
[1721041697023,0.6227448,3341.2,3340.9,2.99318]
[1721041697838,0.6227448,3341.3,3340.9,2.99318]
[1721041698635,0.6227448,3341.2,3340.9,2.99318]
[1721041698839,1.24548961,3341.5,3340.9,2.99318]
[1721041698840,0.11242015,3341.5,3340.9,2.99318]
[1721041699040,0.62277891,3341.2,3340.9,2.99318]
[1721041699640,0.62277891,3341.3,3340.9,2.99318]
[1721041700210,0.62277891,3341.3,3340.9,6.8920362]
[1721041701141,0.62277891,3341.3,3341.0,2.9931]
[1721041702437,0.62277891,3341.3,3340.8,2.99323]
[1721041702821,0.62277891,3341.2,3340.8,2.99323]
[1721041703515,0.62277891,3341.1,3340.6,2.99342]
[1721041703839,0.62277891,3341.0,3340.7,0.07084698]
[1721041704026,3.61572891,3341.2,3340.7,0.07084698]
[1721041706343,0.62277891,3341.2,3340.7,0.07084698]
[1721041706550,0.62277891,3341.2,3340.9,2.99316]
[1721041706957,0.62277891,3341.2,3341.0,0.07064382]
[1721041707153,0.62277891,3341.2,3341.0,3.06375382]
[1721041707358,0.62277891,3341.3,3341.0,3.06375382]
[1721041709164,0.62277891,3341.2,3341.0,3.06375382]
[1721041709377,0.62277891,3341.3,3341.0,4.02997917]
[1721041709533,0.62277891,3341.3,3341.0,3.06375382]
[1721041710675,0.62277891,3341.3,3341.1,2.99296]
[1721041711168,0.62277891,3341.3,3341.2,0.07050839]
[1721041711875,0.62339148,3341.3,3341.2,0.07050839]
[1721041714584,0.62343333,3341.3,3341.2,0.07050839]
[1721041715233,0.62343333,3341.3,3341.2,3.06343839]
[1721041715473,0.62343333,3341.5,3341.3,2.99284]
[1721041715734,1.55858332,3341.8,3341.7,2.99248]
[1721041715959,1.24686666,3342.1,3341.7,2.99248]
[1721041715960,0.62353896,3341.9,3341.7,2.99248]
[1721041716157,3.66056666,3342.2,3341.7,3.0626269]
[1721041716158,0.62353896,3342.0,3341.7,3.0626269]
[1721041716758,0.62353896,3342.0,3341.7,6.0550369]
[1721041717535,0.62353896,3342.1,3341.7,6.0550369]
[1721041717768,0.62353896,3342.1,3341.7,0.68163515]
[1721041718036,0.62353896,3342.1,3342.0,2.99222]
[1721041718265,0.62353896,3342.1,3342.0,3.06216386]
[1721041719155,0.62353896,3342.1,3342.0,6.1142244]
[1721041719467,1.55795929,3342.6,3342.0,6.1142244]
[1721041719468,3.08403896,3342.8,3342.0,3.6797844]
[1721041719795,2.4605,3342.8,3342.1,4.15015844]
[1721041719970,2.4605,3342.8,3342.2,0.0598337]
[1721041720131,0.62353896,3343.0,3342.2,0.0598337]
[1721041720337,0.62353896,3342.9,3342.3,0.06970892]
[1721041720530,6.29583999,3343.1,3342.3,0.06970892]
[1721041720531,0.62353896,3343.0,3342.3,0.06970892]
[1721041720783,7.19340255,3343.1,3342.4,2.99186]
[1721041721187,4.20211255,3343.1,3342.5,0.0695736]
[1721041721345,4.20110509,3343.1,3342.5,3.0613236]
[1721041721775,7.19233509,3343.1,3342.5,0.0695736]
[1721041722051,1.18651176,3343.0,3342.4,2.99186]
[1721041722351,2.4848,3342.9,3342.5,0.06954934]
[1721041722556,2.55959155,3342.9,3342.5,0.06954934]
[1721041722770,2.55959155,3342.9,3342.3,2.99187]
[1721041722987,3.21331733,3342.9,3342.3,2.99187]
[1721041723289,3.2881163,3342.9,3342.4,0.069617]
[1721041723490,2.99156,3342.8,3342.4,0.069617]
[1721041723734,2.99156,3342.8,3342.2,3.0]
[1721041723933,3.97343388,3342.8,3342.5,0.06955785]
[1721041724082,3.97343388,3342.8,3342.2,3.0]
[1721041724482,3.97343388,3342.8,3342.3,0.06969317]
[1721041725389,3.97343388,3342.8,3342.2,3.0]
[1721041725591,0.98187388,3342.8,3342.4,0.06962551]
[1721041725815,2.4848,3342.9,3342.4,3.06140551]
[1721041726084,2.4848,3342.9,3342.5,3.06128318]
[1721041727411,2.4848,3342.9,3342.5,0.06951318]
[1721041727734,2.4848,3342.9,3342.3,2.99195]
[1721041728380,2.4848,3342.9,3342.4,0.0695736]
[1721041728594,5.27495,3342.8,3342.4,0.0695736]
[1721041728821,5.27495,3342.8,3342.2,3.0]
[1721041729121,5.27495,3342.8,3342.3,0.06964552]
[1721041731998,2.2834,3342.8,3342.3,0.06964552]
[1721041732401,2.2834,3342.8,3342.5,2.99176]
[1721041732591,2.99118,3343.2,3342.3,0.06964552]
[1721041732592,2.3282,3343.2,3342.6,2.99161]
[1721041732924,2.92222724,3343.2,3342.7,0.0693749]
[1721041733296,2.92222724,3343.2,3342.6,2.99167]
[1721041733501,2.92222724,3343.2,3342.8,0.06930725]
[1721041733723,2.92222724,3343.2,3342.6,5.98327]
[1721041733927,2.92222724,3343.2,3342.9,0.06923961]
[1721041734532,2.92222724,3343.2,3343.0,0.06917197]
[1721041734707,2.92222724,3343.2,3342.6,5.98327]
[1721041735033,2.3282,3343.2,3343.1,0.06910434]
[1721041735184,2.3282,3343.2,3342.7,2.99157]
[1721041735385,2.3282,3343.2,3343.1,0.06910434]
[1721041735627,2.3282,3343.2,3342.8,2.99148]
[1721041736130,2.3282,3343.2,3342.9,0.06923961]
[1721041739644,0.07478409,3343.1,3342.9,0.06923961]
[1721041740021,0.07478409,3343.1,3343.0,0.0691558]
[1721041740522,5.91336636,3343.2,3343.0,0.06914134]
[1721041740523,5.98815576,3343.2,3343.0,0.06914134]
[1721041740826,5.98815576,3343.2,3342.5,2.99176]
[1721041741247,5.98815576,3343.2,3342.6,0.06941234]
[1721041741424,5.98815576,3343.2,3342.4,2.99178]
[1721041741631,2.99124,3343.1,3342.4,2.99178]
[1721041741853,3.06602982,3343.1,3342.5,0.06947999]
[1721041742063,5.38463,3343.0,3342.5,0.06947999]
[1721041744531,6.28160964,3343.0,3342.5,0.06947999]
[1721041744730,6.28160964,3343.0,3342.3,2.99194]
[1721041744961,5.38463,3343.0,3342.6,0.06941234]
[1721041745263,5.38463,3343.0,3342.7,0.06934469]
[1721041745771,5.38463,3343.0,3342.8,0.06927704]
[1721041745944,5.38463,3343.0,3342.3,2.99194]
[1721041746134,5.38463,3343.0,3342.9,0.0692094]
[1721041746335,6.28160964,3343.0,3342.1,2.99206]
[1721041746635,3.06626393,3342.9,3342.2,3.0]
[1721041746857,2.99177,3342.6,3342.2,3.0]
[1721041747045,2.4284,3342.7,3342.0,7.41]
[1721041747241,2.4284,3342.7,3341.8,2.99232]
[1721041747443,2.99177,3342.5,3341.9,5.99229]
[1721041748544,2.99177,3342.5,3341.9,3.0]
[1721041748762,2.2719,3342.4,3341.8,3.0]
[1721041748955,2.2719,3342.4,3341.8,5.99234]
[1721041750764,2.2719,3342.4,3341.9,0.06989493]
[1721041751153,2.2719,3342.4,3341.9,3.06217493]
[1721041751353,2.2719,3342.4,3341.9,3.96763342]
[1721041752357,2.2719,3342.4,3341.9,3.06217493]
[1721041755898,2.2719,3342.4,3341.9,6.05441493]
[1721041756189,2.2719,3342.4,3342.0,2.9922]
[1721041756384,2.2719,3342.4,3342.0,3.06202725]
[1721041758168,0.62097002,3342.6,3342.1,0.05984197]
[1721041758392,0.62097002,3342.6,3342.4,5.9836]
[1721041758693,0.62097002,3342.9,3342.5,3.59013]
[1721041758913,2.4732,3343.0,3342.5,3.06126743]
[1721041759097,0.62256135,3342.9,3342.5,3.06126743]
[1721041759611,0.62256135,3342.8,3342.5,3.06126743]
[1721041760789,3.09632936,3342.6,3342.5,0.06949743]
[1721041760995,3.74355572,3342.6,3342.3,2.99187]
[1721041761230,1.27035572,3342.5,3342.3,2.99187]
[1721041761400,0.64722636,3342.4,3342.3,2.99187]
[1721041761575,1.27035572,3342.4,3341.9,2.99226]
[1721041761763,0.62312936,3342.4,3342.0,3.0]
[1721041761964,0.62312936,3342.4,3342.1,2.9921]
[1721041762300,0.62312936,3342.4,3342.2,3.0]
[1721041763359,0.64429474,3342.3,3342.2,3.0]
[1721041763582,0.64429474,3342.3,3342.0,3.0]
[1721041763983,0.64429474,3342.3,3342.0,5.99218]
[1721041764479,1.2674241,3342.3,3342.0,5.99218]
[1721041764761,0.64429474,3342.2,3342.0,5.99218]
[1721041765677,0.64429474,3342.2,3342.1,0.06974469]
[1721041767817,3.74130951,3342.2,3342.1,0.06974469]
[1721041767979,4.0532169,3342.2,3342.1,0.06974469]
[1721041768378,4.05307044,3342.2,3341.8,2.99231]
[1721041768578,0.62369673,3342.0,3341.8,2.99231]
[1721041768982,0.62369807,3342.0,3341.8,2.99231]
[1721041771294,0.62369807,3342.1,3341.9,2.9923]
[1721041771493,0.64207401,3342.0,3341.9,2.9923]
[1721041771885,0.62369807,3342.1,3341.9,2.9923]
[1721041772821,3.09689807,3342.2,3341.9,2.9923]
[1721041773396,0.62369807,3342.2,3342.0,2.99221]
[1721041773611,0.62369807,3342.3,3342.2,2.99204]
[1721041773796,0.9355471,3342.4,3342.3,2.99191]
[1721041774013,0.62381828,3342.4,3342.3,2.99191]
[1721041775020,0.9357001,3342.6,3342.4,2.99185]
[1721041775217,0.62160256,3342.5,3342.4,2.99185]
[1721041775389,0.62383378,3342.5,3342.4,3.590226]
[1721041775725,0.9357001,3342.7,3342.4,3.590226]
[1721041775726,0.62383378,3342.7,3342.4,3.590226]
[1721041776028,0.62383378,3342.6,3342.4,3.590226]
[1721041776386,0.62383378,3342.7,3342.4,3.590226]
[1721041776726,0.62383378,3342.6,3342.4,3.590226]
[1721041777088,0.62383378,3342.7,3342.4,3.590226]
[1721041777493,0.62383378,3342.7,3342.5,2.99176]
[1721041778533,0.62383378,3342.6,3342.5,2.99176]
[1721041778837,0.62383378,3342.7,3342.5,2.99176]
[1721041779823,0.62383378,3342.7,3342.4,2.632]
[1721041780027,0.62383378,3342.5,3342.4,2.632]
[1721041780233,0.62383378,3342.5,3342.4,5.62385]
[1721041780614,1.24509209,3342.5,3342.4,3.0614002]
[1721041780929,3.02595831,3342.5,3342.4,3.0614002]
[1721041781131,3.64971422,3342.5,3342.4,3.0614002]
[1721041781494,3.64971274,3342.5,3342.4,3.0614002]
[1721041781946,3.64971274,3342.5,3342.4,0.0695502]
[1721041782114,3.64971274,3342.5,3342.3,2.99195]
[1721041782310,0.62093999,3342.4,3342.1,2.99208]
[1721041782510,1.24469442,3342.4,3342.2,3.0]
[1721041782699,0.62375443,3342.4,3342.2,3.0]
[1721041783099,0.62375443,3342.3,3342.2,3.0]
[1721041783435,0.62375443,3342.4,3342.2,3.0]
[1721041783776,0.62375443,3342.3,3342.2,3.0]
[1721041783937,0.62375443,3342.4,3342.2,3.0]
[1721041784135,0.62003338,3342.3,3342.2,3.0]
[1721041784495,0.62375443,3342.4,3342.2,3.0]
[1721041784692,0.62381543,3342.4,3342.2,3.0]
[1721041784915,0.6196522,3342.3,3342.2,3.0]
[1721041785130,0.62381543,3342.4,3342.2,3.0]
[1721041785340,0.62013593,3342.3,3342.2,3.0]
[1721041787134,0.62013593,3342.3,3342.2,5.99204]
[1721041788513,0.62013593,3342.3,3342.2,7.08904]
[1721041790207,1.24395136,3342.3,3342.2,7.08904]
[1721041791161,1.24395136,3342.3,3342.2,11.08781437]
[1721041791328,0.93572315,3342.5,3342.2,8.64577437]
[1721041791329,0.62381543,3342.5,3342.2,8.64577437]
[1721041791528,0.62394665,3342.5,3342.4,4.08879]
[1721041791745,0.62394665,3342.6,3342.4,4.08879]
[1721041791952,0.62394665,3342.6,3342.5,1.097]
[1721041793427,0.62394665,3342.7,3342.6,2.99168]
[1721041793637,1.07726852,3342.7,3342.6,4.08868]
[1721041793844,0.45332187,3342.7,3342.6,4.08868]
[1721041794157,1.0771617,3342.7,3342.6,4.08868]
[1721041794549,0.45332187,3342.7,3342.6,4.08868]
[1721041794749,0.45332187,3342.7,3342.6,4.8565711]
[1721041794970,0.93591998,3342.8,3342.7,2.99159]
[1721041794971,0.62393305,3342.8,3342.7,2.99159]
[1721041795119,0.62393305,3342.9,3342.8,2.9915]
[1721041795325,3.25901998,3343.1,3342.8,4.0885]